bitfinex/quotes_SOLUSD_20240705
["timestamp","ask_amount","ask_price","bid_price","bid_amount"]
[1720141879347,45.0,128.72,128.62,19.4363]
[1720141879640,7.7718,128.67,128.61,0.1]
[1720141879857,7.7726,128.66,128.61,0.1]
[1720141880236,7.7747,128.63,128.61,0.1]
[1720141880449,7.7748,128.62,128.61,0.1]
[1720141880829,7.7743,128.63,128.61,0.1]
[1720141881024,6.5135,128.66,128.61,0.1]
[1720141881242,7.774,128.64,128.61,0.1]
[1720141881450,0.77754452,128.62,128.61,0.1]
[1720141882331,0.77754452,128.62,128.61,19.5386]
[1720141882642,0.77754452,128.62,128.61,0.1]
[1720141885241,0.77754452,128.62,128.61,7.8754]
[1720141886356,0.77754452,128.62,128.61,0.1]
[1720141887130,8.55234452,128.62,128.61,0.1]
[1720141888135,0.77754452,128.62,128.61,0.1]
[1720141889362,0.77754452,128.62,128.61,7.8754]
[1720141889740,15.8322,128.73,128.65,7.7727]
[1720141889741,7.7694,128.71,128.65,7.7727]
[1720141890263,7.7694,128.71,128.64,27.2066]
[1720141890437,7.77,128.7,128.64,27.2066]
[1720141890636,7.7708,128.69,128.63,7.7741]
[1720141891051,7.7708,128.69,128.61,0.1]
[1720141891052,45.0,128.68,128.61,0.1]
[1720141891252,7.7725,128.66,128.61,0.1]
[1720141891466,7.7731,128.65,128.61,0.1]
[1720141891669,7.7725,128.66,128.61,0.1]
[1720141891971,7.7722,128.67,128.61,7.8753]
[1720141892276,119.4214,128.73,128.61,0.1]
[1720141892566,7.7715,128.68,128.62,19.4359]
[1720141892869,7.7701,128.7,128.64,7.7736]
[1720141893039,7.7708,128.69,128.63,7.774]
[1720141893243,7.7724,128.66,128.61,0.1]
[1720141893439,19.4226,128.72,128.61,0.1]
[1720141893440,7.7736,128.64,128.61,0.1]
[1720141893663,100.0,128.69,128.61,0.1]
[1720141893664,7.7726,128.66,128.61,0.1]
[1720141894058,7.773,128.65,128.61,0.1]
[1720141894956,7.7736,128.64,128.61,0.1]
[1720141895276,7.7742,128.63,128.61,0.1]
[1720141895576,14.0561,128.66,128.61,0.1]
[1720141895959,7.7725,128.66,128.61,0.1]
[1720141896457,183.38,128.69,128.61,0.1]
[1720141896859,7.7726,128.66,128.61,0.1]
[1720141897554,183.38,128.69,128.61,0.1]
[1720141897876,100.0,128.67,128.61,0.1]
[1720141898171,45.0,128.66,128.61,0.1]
[1720141898347,7.7748,128.62,128.61,0.1]
[1720141900274,167.05526119,128.62,128.61,0.1]
[1720141900652,67.05526119,128.62,128.61,0.1]
[1720141901172,67.05526119,128.62,128.57,0.8329727]
[1720141901386,67.05526119,128.62,128.51,0.1]
[1720141901387,7.7791,128.55,128.51,0.1]
[1720141901547,7.7807,128.53,128.51,0.1]
[1720141901746,100.0,128.56,128.51,0.1]
[1720141901946,167.41858642,128.58,128.51,0.1]
[1720141902247,0.77778642,128.58,128.51,0.1]
[1720141902448,7.7804,128.53,128.51,0.1]
[1720141902658,7.7801,128.54,128.51,0.1]
[1720141903188,45.0,128.53,128.51,0.1]
[1720141903354,19.4471,128.56,128.51,0.1]
[1720141903682,7.7808,128.52,128.51,0.1]
[1720141904174,100.0,128.56,128.51,0.1]
[1720141904376,7.7808,128.52,128.51,0.1]
[1720141904756,3.46534648,128.57,128.51,0.1]
[1720141905181,7.7795,128.55,128.51,0.1]
[1720141905874,100.0,128.56,128.51,0.1]
[1720141906079,7.7808,128.52,128.51,0.1]
[1720141906374,7.7804,128.53,128.51,0.1]
[1720141906574,7.7808,128.52,128.51,0.1]
[1720141907581,152.7808,128.52,128.51,0.1]
[1720141908382,7.7847,128.46,128.44,0.8329727]
[1720141908597,100.0,128.5,128.44,0.8329727]
[1720141908778,7.7839,128.47,128.44,0.8329727]
[1720141908981,7.7833,128.48,128.44,0.8329727]
[1720141909181,7.7849,128.46,128.44,0.8329727]
[1720141909805,7.784,128.47,128.44,0.8329727]
[1720141910088,7.7833,128.48,128.44,0.8329727]
[1720141910479,100.0,128.51,128.44,0.8329727]
[1720141910665,7.7844,128.47,128.44,0.8329727]
[1720141911066,100.0,128.48,128.44,0.8329727]
[1720141911294,19.4559,128.5,128.44,0.8329727]
[1720141911295,7.7845,128.46,128.44,0.8329727]
[1720141911890,100.0,128.48,128.44,0.8329727]
[1720141912087,7.7839,128.47,128.44,0.8329727]
[1720141912283,7.7847,128.46,128.44,0.8329727]
[1720141912604,7.7851,128.45,128.44,0.8329727]
[1720141913181,27.2479,128.45,128.44,0.8329727]
[1720141913401,72.2479,128.45,128.44,0.8329727]
[1720141913576,7.7851,128.45,128.44,0.8329727]
[1720141913895,7.7846,128.46,128.44,0.8329727]
[1720141914101,7.7851,128.45,128.44,0.8329727]
[1720141914598,100.0,128.47,128.44,0.8329727]
[1720141914796,7.7851,128.45,128.44,0.8329727]
[1720141916101,107.7851,128.45,128.44,0.8329727]
[1720141916394,168.4477,128.45,128.44,7.27e-05]
[1720141916600,168.4477,128.45,128.41,0.14614459]
[1720141916601,107.7869,128.42,128.41,0.14614459]
[1720141916773,152.7869,128.42,128.41,0.14614459]
[1720141916974,158.8254,128.42,128.41,4.459e-05]
[1720141918576,100.0,128.38,128.29,6.4173]
[1720141918805,7.7922,128.34,128.29,6.4173]
[1720141919001,45.0,128.37,128.28,15.3219]
[1720141919002,7.7929,128.33,128.28,15.3219]
[1720141919303,7.7919,128.34,128.28,7.7953]
[1720141919488,3.75882801,128.37,128.29,7.7945]
[1720141919685,103.75882801,128.37,128.27,19.4899]
[1720141919894,7.7924,128.33,128.27,19.4899]
[1720141920578,7.793,128.32,128.24,19.4944]
[1720141920908,7.793,128.32,128.24,27.2921]
[1720141921208,7.793,128.32,128.24,19.4944]
[1720141921373,8.57078642,128.32,128.24,27.2921]
[1720141921570,8.57078642,128.32,128.25,7.7966]
[1720141921773,8.57078642,128.32,128.23,21.6546]
[1720141922070,53.57078642,128.32,128.23,29.453]
[1720141922274,53.57078642,128.32,128.31,7.27e-05]
[1720141922275,59.86498642,128.32,128.31,7.27e-05]
[1720141922576,59.86498642,128.32,128.21,0.1]
[1720141922577,100.0,128.27,128.21,0.1]
[1720141922770,183.54198642,128.32,128.15,30.32177492]
[1720141922771,7.8005,128.2,128.15,30.32177492]
[1720141923111,7.8005,128.2,128.15,22.1967727]
[1720141923411,7.7997,128.21,128.15,22.1967727]
[1720141923599,7.7959,128.28,128.2,7.7997]
[1720141923904,7.7979,128.24,128.15,22.1967727]
[1720141924080,7.7979,128.24,128.17,7.802]
[1720141924410,7.7973,128.25,128.18,7.8009]
[1720141924588,7.7973,128.25,128.16,19.5063]
[1720141924589,7.7984,128.24,128.16,19.5063]
[1720141924914,100.0,128.27,128.18,7.8013]
[1720141925377,7.798,128.24,128.17,7.802]
[1720141925577,7.7974,128.25,128.18,7.8013]
[1720141925921,100.0,128.27,128.19,7.8007]
[1720141925922,7.7967,128.26,128.19,7.8007]
[1720141926401,7.7985,128.23,128.17,7.8015]
[1720141926601,7.7979,128.24,128.17,7.8015]
[1720141926775,100.0,128.3,128.2,7.8001]
[1720141926978,7.7967,128.26,128.2,7.8001]
[1720141927211,7.7974,128.25,128.18,19.5033]
[1720141927388,100.0,128.28,128.18,19.5033]
[1720141927582,7.07198642,128.32,128.15,22.1967727]
[1720141927788,7.07198642,128.32,128.26,7.7965]
[1720141927789,0.77778642,128.32,128.26,7.7965]
[1720141927996,0.77778642,128.32,128.25,19.4922]
[1720141928689,7.7944,128.3,128.24,21.2817]
[1720141928890,7.7942,128.3,128.24,21.2817]
[1720141929112,100.77778642,128.32,128.2,21.3471]
[1720141929294,7.7966,128.27,128.2,21.3471]
[1720141929495,100.0,128.3,128.2,21.3471]
[1720141929808,7.7971,128.26,128.2,21.3471]
[1720141930198,100.0,128.27,128.19,19.5014]
[1720141930387,7.7979,128.24,128.17,7.8019]
[1720141930893,100.0,128.25,128.16,33.4876]
[1720141931107,7.7984,128.24,128.17,7.802]
[1720141931409,7.799,128.23,128.16,27.3087]
[1720141931796,100.0,128.23,128.15,15.5712]
[1720141931994,7.7997,128.21,128.13,19.92887602]
[1720141932215,7.7992,128.22,128.16,7.8027]
[1720141932586,7.8,128.21,128.15,27.3108]
[1720141933008,7.798,128.24,128.18,7.8012]
[1720141933193,7.798,128.24,128.17,19.5045]
[1720141933194,7.7986,128.23,128.17,19.5045]
[1720141933394,7.7978,128.24,128.17,19.5045]
[1720141933620,121.9869,128.31,128.21,7.7996]
[1720141933815,0.77778642,128.32,128.23,19.4952]
[1720141934129,0.77778642,128.32,128.25,19.4925]
[1720141934285,7.7947,128.3,128.23,7.7982]
[1720141934489,0.77778642,128.32,128.19,78.0052]
[1720141934719,8.57088642,128.32,128.26,7.7965]
[1720141935015,0.77778642,128.32,128.19,39.0016]
[1720141935214,7.7936,128.31,128.25,7.7972]
[1720141935408,0.77778642,128.32,128.22,19.497]
[1720141935920,100.0,128.31,128.22,27.2959]
[1720141936096,7.7943,128.3,128.23,7.7979]
[1720141936301,7.7943,128.3,128.24,7.7976]
[1720141936492,7.7943,128.3,128.22,19.497]
[1720141936820,0.77778642,128.32,128.23,7.7983]
[1720141936821,7.795,128.29,128.23,7.7983]
[1720141936997,7.7949,128.29,128.23,7.7982]
[1720141937203,7.7937,128.31,128.24,7.7973]
[1720141937499,7.7937,128.31,128.24,7.7978]
[1720141937698,0.77778642,128.32,128.22,19.497]
[1720141937916,8.57128642,128.32,128.25,7.7967]
[1720141938104,7.7937,128.31,128.25,7.7967]
[1720141938494,8.57078642,128.32,128.26,7.7965]
[1720141938719,8.57078642,128.32,128.25,7.7971]
[1720141938922,7.7937,128.31,128.25,7.7971]
[1720141939123,8.57088642,128.32,128.26,7.7964]
[1720141939424,100.0,128.31,128.21,19.4985]
[1720141939589,0.77778642,128.32,128.21,19.4985]
[1720141939789,8.57098642,128.32,128.25,7.7966]
[1720141939994,8.57098642,128.32,128.26,7.7965]
[1720141940216,7.7947,128.3,128.24,7.7974]
[1720141940426,0.77778642,128.32,128.24,7.7978]
[1720141940632,100.0,128.31,128.22,19.4968]
[1720141940802,7.7959,128.28,128.22,19.4968]
[1720141941298,0.77778642,128.23,128.22,27.2957]
[1720141941503,0.77778642,128.23,128.19,7.8006]
[1720141942018,8.57638642,128.23,128.17,29.6995]
[1720141942718,0.77778642,128.23,128.2,7.8002]
[1720141943317,0.77778642,128.23,128.21,27.2978]
[1720141943618,0.77778642,128.23,128.17,41.4023]
[1720141943840,0.77778642,128.23,128.17,21.8979]
[1720141944004,8.57668642,128.23,128.17,29.6994]
[1720141944322,8.57648642,128.23,128.17,21.8979]
[1720141944532,8.57648642,128.23,128.18,7.8015]
[1720141944533,0.77778642,128.23,128.18,7.8015]
[1720141944718,0.77778642,128.23,128.19,7.8007]
[1720141944913,0.77778642,128.23,128.17,21.8979]
[1720141945223,0.77778642,128.23,128.19,7.8008]
[1720141945425,0.77778642,128.23,128.18,19.5031]
[1720141945632,0.77778642,128.23,128.19,7.8009]
[1720141945824,0.77778642,128.23,128.18,19.5031]
[1720141946529,0.77778642,128.23,128.15,19.5074]
[1720141946530,7.7996,128.22,128.15,19.5074]
[1720141946727,0.77778642,128.23,128.18,7.8013]
[1720141946934,100.0,128.21,128.13,0.41827602]
[1720141947235,45.0,128.2,128.13,0.41827602]
[1720141947414,7.8027,128.16,128.13,0.41827602]
[1720141947604,15.4903,128.22,128.13,0.41827602]
[1720141947804,7.8021,128.18,128.13,0.41827602]
[1720141948026,7.8022,128.17,128.13,0.41827602]
[1720141948321,7.8021,128.17,128.13,0.41827602]
[1720141948531,7.802,128.18,128.13,0.41827602]
[1720141948699,145.59788642,128.23,128.14,7.8033]
[1720141949029,7.8003,128.2,128.13,0.41827602]
[1720141949220,7.8003,128.2,128.13,8.22227602]
[1720141949604,7.801,128.19,128.13,8.22227602]
[1720141949802,7.8004,128.2,128.14,7.8039]
[1720141950002,6.95788642,128.23,128.14,19.5091]
[1720141950525,0.77778642,128.23,128.17,7.8019]
[1720141950828,0.77778642,128.23,128.18,19.5031]
[1720141951027,0.77778642,128.23,128.18,27.3041]
[1720141951234,8.57668642,128.23,128.17,7.8019]
[1720141951543,8.57628642,128.23,128.17,7.8019]
[1720141951716,7.7991,128.22,128.16,7.8026]
[1720141951910,8.57638642,128.23,128.16,7.8026]
[1720141952107,8.57638642,128.23,128.17,7.802]
[1720141953134,0.77778642,128.23,128.15,36.1702]
[1720141953336,0.77778642,128.23,128.15,19.5074]
[1720141954035,7.7992,128.22,128.16,7.8026]
[1720141954242,8.57638642,128.23,128.17,7.802]
[1720141954815,7.7991,128.22,128.16,7.8025]
[1720141955338,7.8001,128.21,128.15,19.5074]
[1720141955513,7.8001,128.21,128.15,27.3103]
[1720141956038,7.8001,128.21,128.14,6.5124]
[1720141956039,0.77778642,128.23,128.17,19.5047]
[1720141956417,0.77778642,128.23,128.2,7.8003]
[1720141956639,0.77778642,128.23,128.19,27.3025]
[1720141957011,0.77778642,128.23,128.18,7.8013]
[1720141957209,22.7128,128.2,128.13,0.41827602]
[1720141957624,7.8017,128.18,128.13,0.41827602]
[1720141957830,7.8022,128.17,128.13,0.41827602]
[1720141958039,7.8028,128.16,128.13,0.41827602]
[1720141958222,7.8022,128.17,128.13,0.41827602]
[1720141958616,22.7128,128.2,128.13,0.41827602]
[1720141958849,7.8027,128.16,128.13,0.41827602]
[1720141959510,7.8021,128.17,128.13,0.41827602]
[1720141959710,7.8027,128.16,128.13,0.41827602]
[1720141960141,22.7128,128.2,128.13,0.41827602]
[1720141960338,7.8033,128.15,128.13,0.41827602]
[1720141960639,7.8028,128.16,128.13,0.41827602]
[1720141960847,0.77778642,128.23,128.13,0.41827602]
[1720141961165,7.8001,128.21,128.15,7.8032]
[1720141961356,0.77778642,128.16,128.13,19.92847602]
[1720141961652,0.77778642,128.16,128.13,0.41827602]
[1720141962240,7.8039,128.14,128.13,0.41827602]
[1720141963256,123.9963,128.14,128.13,7.602e-05]
[1720141963438,168.9963,128.14,128.13,7.602e-05]
[1720141964335,127.318,128.12,128.11,7.602e-05]
[1720141964656,203.928,128.12,128.11,7.602e-05]
[1720141966142,27.318,128.12,128.11,7.602e-05]
[1720141966453,7.8051,128.12,128.11,7.602e-05]
[1720141966751,8.10945354,128.14,128.11,7.602e-05]
[1720141966955,0.77778642,128.16,128.11,7.602e-05]
[1720141967254,7.8046,128.13,128.11,7.602e-05]
[1720141967435,0.77778642,128.16,128.11,7.602e-05]
[1720141969159,7.8046,128.13,128.11,7.602e-05]
[1720141970250,7.8051,128.12,128.11,7.602e-05]
[1720141970554,0.77778642,128.16,128.11,7.602e-05]
[1720141970743,7.8045,128.13,128.11,7.602e-05]
[1720141971345,7.8047,128.13,128.11,7.602e-05]
[1720141971856,7.8051,128.12,128.11,7.602e-05]
[1720141972642,7.8047,128.13,128.11,7.602e-05]
[1720141972839,7.8082,128.07,128.06,0.8110596]
[1720141974763,11.84042365,128.08,128.06,0.8110596]
[1720141974929,7.8082,128.07,128.06,0.8110596]
[1720141976949,11.84042365,128.08,128.06,0.8110596]
[1720141977155,4.03272365,128.08,128.06,0.8110596]
[1720141977344,7.8082,128.07,128.06,0.8110596]
[1720141977537,4.03272365,128.08,128.06,0.8110596]
[1720141977748,7.8082,128.07,128.06,0.8110596]
[1720141978066,11.84082365,128.08,128.06,0.8110596]
[1720141978438,4.03272365,128.08,128.06,0.8110596]
[1720141979041,4.03272365,128.08,128.07,7.8082]
[1720141979265,4.03272365,128.08,128.06,20.3329596]
[1720141979641,4.03272365,128.08,128.07,7.8082]
[1720141979880,4.03272365,128.08,128.06,28.1416596]
[1720141980059,4.03272365,128.08,128.07,7.8082]
[1720141980236,4.03272365,128.08,128.06,0.8110596]
[1720141981264,0.77778642,128.07,128.06,0.8110596]
[1720141981596,15.92005375,128.17,128.11,7.8056]
[1720141981734,7.8009,128.19,128.13,7.8045]
[1720141981932,7.8003,128.2,128.13,7.804]
[1720141982165,7.8003,128.2,128.13,7.8044]
[1720141982391,7.8003,128.2,128.09,6.3076]
[1720141982392,26.138,128.25,128.14,19.5087]
[1720141982541,6.6441,128.25,128.14,19.5096]
[1720141983048,8.11834692,128.26,128.17,19.505]
[1720141983250,15.91504692,128.26,128.17,19.505]
[1720141983461,8.11834692,128.26,128.2,19.5006]
[1720141983764,21.9832,128.29,128.19,6.3076]
[1720141983765,7.7974,128.25,128.19,6.3076]
[1720141983940,7.7966,128.26,128.19,14.108]
[1720141984140,7.7966,128.26,128.19,6.3076]
[1720141984643,8.11750983,128.3,128.2,7.8]
[1720141984845,100.0,128.29,128.19,25.8086]
[1720141985048,8.11750983,128.3,128.19,25.8086]
[1720141985049,7.7972,128.26,128.19,33.609]
[1720141985245,8.11750983,128.3,128.19,33.609]
[1720141985246,7.7959,128.28,128.21,7.7996]
[1720141985565,7.7973,128.25,128.19,25.8086]
[1720141985772,8.11750983,128.3,128.19,19.501]
[1720141985970,7.7959,128.28,128.21,7.7991]
[1720141986173,8.11750983,128.3,128.19,19.501]
[1720141986353,7.7957,128.28,128.21,7.7996]
[1720141986546,15.91230983,128.3,128.21,19.4984]
[1720141986880,108.11750983,128.3,128.21,19.4984]
[1720141987172,15.91220983,128.3,128.23,7.7983]
[1720141987465,15.91220983,128.3,128.22,19.4969]
[1720141987466,7.7947,128.3,128.22,19.4969]
[1720141987665,7.7947,128.3,128.23,7.7983]
[1720141987973,46.73448367,128.32,128.22,19.4969]
[1720141987974,7.7955,128.28,128.22,19.4969]
[1720141988564,100.0,128.3,128.2,7.8003]
[1720141988770,100.0,128.3,128.22,7.7989]
[1720141988943,7.7959,128.28,128.22,7.7989]
[1720141989275,46.73448367,128.32,128.21,19.4982]
[1720141989769,7.7943,128.3,128.24,7.7978]
[1720141989975,7.7951,128.29,128.23,27.2934]
[1720141990180,7.7951,128.29,128.23,19.4951]
[1720141990464,7.7969,128.26,128.2,27.3005]
[1720141990668,7.7961,128.27,128.21,7.7996]
[1720141990873,19.4887,128.28,128.17,7.8016]
[1720141991049,19.4887,128.28,128.18,7.801]
[1720141991258,7.7964,128.27,128.18,19.5029]
[1720141991471,103.4555,128.31,128.17,39.0103]
[1720141991472,45.0,128.31,128.17,39.0103]
[1720141991780,7.7943,128.3,128.24,7.7974]
[1720141991993,7.7943,128.3,128.22,19.4969]
[1720141992290,38.62,128.32,128.22,19.4969]
[1720141992461,145.0,128.31,128.19,19.5016]
[1720141992660,7.7968,128.26,128.19,27.302]
[1720141992867,7.7961,128.27,128.19,19.5016]
[1720141993363,7.7961,128.27,128.21,7.7992]
[1720141993569,7.7952,128.29,128.21,19.4984]
[1720141993771,38.62,128.32,128.24,7.7978]
[1720141993772,7.7943,128.3,128.24,7.7978]
[1720141995189,7.7949,128.29,128.23,27.2936]
[1720141995373,126.1257,128.33,128.24,7.7978]
[1720141995374,7.7943,128.3,128.24,7.7978]
[1720141995680,7.7936,128.31,128.25,7.7971]
[1720141995989,6.6441,128.33,128.25,19.4923]
[1720141996872,7.7937,128.31,128.25,27.289]
[1720141997200,100.0,128.31,128.22,19.4968]
[1720141997407,100.0,128.31,128.19,19.5014]
[1720141997690,19.4834,128.32,128.21,19.4984]
[1720141998073,100.0,128.31,128.21,19.4984]
[1720141998277,7.7955,128.28,128.22,7.7985]
[1720141998477,7.7949,128.29,128.23,7.7983]
[1720141998683,100.0,128.31,128.21,27.2975]
[1720141998893,19.4834,128.32,128.22,7.799]
[1720141999076,45.0,128.31,128.22,7.799]
[1720141999277,7.7958,128.28,128.22,7.799]
[1720141999477,7.796,128.27,128.21,27.2979]
[1720141999773,7.7967,128.26,128.21,27.2979]
[1720141999972,7.7975,128.25,128.19,7.8003]
[1720142000173,7.7961,128.27,128.2,19.4999]
[1720142000382,126.126,128.33,128.18,39.0074]
[1720142000593,7.7942,128.3,128.22,19.4971]
[1720142000802,7.7938,128.31,128.25,7.7971]
[1720142001117,7.7942,128.3,128.24,7.7977]
[1720142001285,0.7797879,128.25,128.24,7.7977]
[1720142001692,0.7797879,128.25,128.23,7.7983]
[1720142001898,0.7797879,128.25,128.22,27.296]
[1720142002495,0.7797879,128.25,128.23,7.7983]
[1720142003399,0.7797879,128.25,128.24,7.7978]
[1720142004489,0.7797879,128.25,128.23,7.7983]
[1720142004984,0.7797879,128.25,128.24,7.7978]
[1720142006381,0.7797879,128.25,128.22,19.4971]
[1720142006877,0.7797879,128.25,128.24,7.7978]
[1720142007182,0.7797879,128.25,128.22,27.2961]
[1720142007398,0.7797879,128.25,128.22,19.4971]
[1720142007683,0.7797879,128.25,128.24,7.7978]
[1720142008993,0.7797879,128.25,128.23,7.7983]
[1720142009403,0.7797879,128.25,128.24,7.7978]
[1720142011196,0.7797879,128.25,128.23,7.7983]
[1720142011792,0.7797879,128.25,128.19,27.3017]
[1720142012013,0.7797879,128.25,128.2,7.8001]
[1720142012216,0.7797879,128.25,128.19,19.5012]
[1720142012510,8.5771879,128.25,128.19,27.302]
[1720142012710,7.7981,128.24,128.19,19.5012]
[1720142012881,8.5770879,128.25,128.19,27.302]
[1720142013081,8.5769879,128.25,128.2,7.8001]
[1720142013297,0.7797879,128.25,128.2,7.8001]
[1720142014288,8.5770879,128.25,128.2,7.8001]
[1720142014596,8.5770879,128.25,128.19,27.3019]
[1720142014997,0.7797879,128.25,128.16,35.586]
[1720142015208,7.7995,128.22,128.16,43.3886]
[1720142015727,119.4951,128.24,128.13,33.6511]
[1720142015909,7.8004,128.2,128.14,7.8039]
[1720142016216,7.7995,128.22,128.16,7.8025]
[1720142016720,7.8004,128.2,128.15,19.7394567]
[1720142017104,7.7998,128.21,128.15,27.5426567]
[1720142017599,19.4973,128.23,128.15,0.2317567]
[1720142017801,7.8021,128.18,128.15,0.2317567]
[1720142018112,100.0,128.22,128.15,0.2317567]
[1720142018310,19.4973,128.23,128.15,0.2317567]
[1720142018508,7.8005,128.2,128.15,0.2317567]
[1720142018707,7.801,128.19,128.15,0.2317567]
[1720142020119,7.8015,128.18,128.15,0.2317567]
[1720142021036,7.8022,128.17,128.15,0.2317567]
[1720142021216,7.8017,128.18,128.15,0.2317567]
[1720142021434,0.7797879,128.16,128.15,0.2317567]
[1720142022004,8.5824879,128.16,128.15,0.2317567]
[1720142022709,0.7797879,128.16,128.15,0.2317567]
[1720142024404,8.5824879,128.16,128.15,0.2317567]
[1720142025606,0.7797879,128.16,128.15,0.2317567]
[1720142027017,0.7797879,128.16,128.15,8.0350567]
[1720142027330,0.7797879,128.16,128.15,0.2317567]
[1720142027718,0.7797879,128.16,128.15,8.0350567]
[1720142028035,0.7797879,128.16,128.15,0.2317567]
[1720142029413,0.7797879,128.16,128.02,407.0758991]
[1720142029414,19.5096,128.15,128.02,407.0758991]
[1720142029727,19.5096,128.15,128.03,0.04628155]
[1720142029728,19.512,128.13,128.03,0.04628155]
[1720142030008,67.3581879,128.16,128.03,0.04628155]
[1720142030009,86.8658879,128.16,128.05,19.523]
[1720142030320,7.8052,128.12,128.06,7.8086]
[1720142030632,7.8058,128.11,128.05,27.3322]
[1720142030842,7.8067,128.1,128.05,19.523]
[1720142032034,100.0,128.13,128.03,0.04628155]
[1720142032331,7.8088,128.06,128.03,0.04628155]
[1720142032717,100.0,128.11,128.03,0.04628155]
[1720142032718,6.4539,128.08,128.03,0.04628155]
[1720142033227,7.81,128.04,128.03,0.04628155]
[1720142033908,7.8086,128.07,128.03,0.04628155]
[1720142034138,7.8082,128.07,128.03,0.04628155]
[1720142034307,7.807,128.09,128.03,0.04628155]
[1720142034509,7.8064,128.1,128.03,7.85688155]
[1720142034847,6.3032,128.15,128.03,0.04628155]
[1720142035011,0.7797879,128.16,128.1,27.3207]
[1720142035206,0.7797879,128.16,128.11,7.8053]
[1720142035438,0.7797879,128.16,128.12,7.805]
[1720142035922,0.7797879,128.16,128.13,7.8045]
[1720142036319,0.7797879,128.16,128.14,7.8037]
[1720142036529,0.7797879,128.16,128.15,7.8033]
[1720142036729,0.7797879,128.16,128.12,19.5117]
[1720142037040,0.7797879,128.16,128.12,27.3168]
[1720142037412,0.7797879,128.16,128.12,27.3163]
[1720142037613,0.7797879,128.16,128.13,7.8043]
[1720142037813,0.7797879,128.16,128.12,19.5117]
[1720142038032,0.7797879,128.16,128.14,19.5086]
[1720142038521,0.7797879,128.16,128.11,19.5142]
[1720142038721,8.5825879,128.16,128.11,19.5142]
[1720142038923,7.8036,128.15,128.09,23.593]
[1720142039236,0.7797879,128.16,128.11,7.8056]
[1720142039626,0.7797879,128.16,128.11,7.8051]
[1720142039817,0.7797879,128.16,128.11,7.8056]
[1720142040233,8.5826879,128.16,128.1,27.3212]
[1720142041044,8.5826879,128.16,128.08,7.807]
[1720142041045,7.8044,128.14,128.08,7.807]
[1720142041217,7.8034,128.15,128.09,7.8069]
[1720142042238,7.8061,128.11,128.06,19.521]
[1720142042414,125.7149,128.16,128.06,19.521]
[1720142043115,100.0,128.14,128.03,0.04628155]
[1720142043325,19.5136,128.12,128.03,0.04628155]
[1720142043615,19.5166,128.1,128.03,0.04628155]
[1720142043828,7.8097,128.05,128.03,0.04628155]
[1720142044031,7.81,128.04,128.03,0.04628155]
[1720142045250,7.8096,128.05,128.03,0.04628155]
[1720142045444,7.8089,128.06,128.03,0.04628155]
[1720142045635,7.8094,128.05,128.03,0.04628155]
[1720142045832,7.8088,128.07,128.03,0.04628155]
[1720142046024,7.8046,128.13,128.03,6.25618155]
[1720142046227,147.869,128.16,128.08,27.325]
[1720142046228,16.289,128.16,128.08,27.325]
[1720142046528,7.8034,128.15,128.09,7.8069]
[1720142046740,7.8046,128.13,128.08,19.5178]
[1720142047047,7.8032,128.16,128.1,7.8063]
[1720142047517,25.5111,128.18,128.08,27.325]
[1720142047721,37.5869,128.18,128.04,15.6928]
[1720142047924,8.10448549,128.15,128.08,7.807]
[1720142048343,8.10448549,128.15,128.07,7.808]
[1720142048553,8.10448549,128.15,128.06,27.3296]
[1720142048721,108.10448549,128.15,128.04,15.6928]
[1720142048921,19.5123,128.13,128.04,15.6928]
[1720142049121,7.8058,128.11,128.05,7.8093]
[1720142049341,147.12198549,128.15,128.05,19.5223]
[1720142049342,7.8048,128.13,128.05,19.5223]
[1720142049547,8.10448549,128.15,128.07,19.5198]